[Event "*** Titled Tuesday Blitz"]
[Site "Chess.com"]
[Date "2020.11.10"]
[Round "8"]
[White "IMRosen"]
[Black "MaxLeto"]
[Result "1-0"]
[WhiteElo "2560"]
[BlackElo "2414"]
[TimeControl "180+1"]
[EndTime "11:32:59 PST"]
[Termination "IMRosen won on time"]

1. d4 {[%clk 0:03:00.9]} 1... d5 {[%clk 0:02:59.7]} 2. Bf4 {[%clk 0:03:01.4]}
2... c5 {[%clk 0:02:54.4]} 3. e3 {[%clk 0:03:01.6]} 3... Nc6 {[%clk 0:02:52.8]}
4. Nf3 {[%clk 0:03:00.3]} 4... Bg4 {[%clk 0:02:49.9]} 5. c3 {[%clk 0:02:48.1]}
5... Qb6 {[%clk 0:02:42.3]} 6. Qb3 {[%clk 0:02:25.5]} 6... c4 {[%clk 0:02:41.6]}
7. Qc2 {[%clk 0:02:19.3]} 7... e6 {[%clk 0:02:22.5]} 8. Nbd2 {[%clk 0:02:03.3]}
8... Nf6 {[%clk 0:02:09]} 9. e4 {[%clk 0:01:55.8]} 9... Nxe4 {[%clk 0:01:22.9]}
10. Nxe4 {[%clk 0:01:54.7]} 10... dxe4 {[%clk 0:01:06.5]} 11. Nd2 {[%clk
0:01:53.6]} 11... Bf5 {[%clk 0:00:49.6]} 12. Nxc4 {[%clk 0:01:52]} 12... Qd8
{[%clk 0:00:47.7]} 13. Qa4 {[%clk 0:01:41.7]} 13... Rc8 {[%clk 0:00:38.2]} 14.
Ne5 {[%clk 0:01:40]} 14... Bd6 {[%clk 0:00:26.6]} 15. Nxc6 {[%clk 0:01:06.2]}
15... bxc6 {[%clk 0:00:27.5]} 16. Bxd6 {[%clk 0:01:06.1]} 16... Qxd6 {[%clk
0:00:28.4]} 17. Qxa7 {[%clk 0:01:06.6]} 17... O-O {[%clk 0:00:22.2]} 18. Qc5
{[%clk 0:01:04.4]} 18... Qxc5 {[%clk 0:00:15]} 19. dxc5 {[%clk 0:01:05.3]} 19...
Rb8 {[%clk 0:00:14.1]} 20. O-O-O {[%clk 0:01:01.1]} 20... Rb7 {[%clk 0:00:08.6]}
21. b4 {[%clk 0:01:00.2]} 21... Ra8 {[%clk 0:00:08.3]} 22. Bc4 {[%clk
0:01:00.7]} 22... Rbb8 {[%clk 0:00:04.6]} 23. Rd6 {[%clk 0:01:01.2]} 23... Ra3
{[%clk 0:00:04.1]} 24. Kb2 {[%clk 0:01:00.6]} 24... Rba8 {[%clk 0:00:04.1]} 25.
Rhd1 {[%clk 0:00:54.4]} 25... g5 {[%clk 0:00:04]} 26. Rxc6 {[%clk 0:00:49.5]}
26... Kg7 {[%clk 0:00:03.6]} 27. Rc7 {[%clk 0:00:47.2]} 27... Kg6 {[%clk
0:00:03.3]} 28. Rdd7 {[%clk 0:00:46.2]} 28... Kh5 {[%clk 0:00:01.4]} 29. h3
{[%clk 0:00:40.5]} 29... e3 {[%clk 0:00:02.3]} 30. g4+ {[%clk 0:00:35.7]} 30...
Kh4 {[%clk 0:00:02.5]} 31. Rxf7 {[%clk 0:00:28.5]} 1-0

[Event "*** Titled Tuesday Blitz"]
[Site "Chess.com"]
[Date "2020.11.10"]
[Round "8"]
[White "Vuk2000"]
[Black "Paralinch"]
[Result "0-1"]
[WhiteElo "2688"]
[BlackElo "2851"]
[TimeControl "180+1"]
[EndTime "11:33:00 PST"]
[Termination "Paralinch won by resignation"]

1. d4 {[%clk 0:03:00.9]} 1... d5 {[%clk 0:03:00]} 2. Bf4 {[%clk 0:02:58.1]} 2...
c5 {[%clk 0:02:59.9]} 3. e3 {[%clk 0:02:58.1]} 3... Nc6 {[%clk 0:03:00.1]} 4. c3
{[%clk 0:02:58.1]} 4... Nf6 {[%clk 0:03:00.4]} 5. Nd2 {[%clk 0:02:57.8]} 5...
Bf5 {[%clk 0:02:58.6]} 6. Bb5 {[%clk 0:02:50.7]} 6... e6 {[%clk 0:02:56.5]} 7.
Ngf3 {[%clk 0:02:49.4]} 7... Nd7 {[%clk 0:02:56.8]} 8. Ne5 {[%clk 0:02:36.7]}
8... Ncxe5 {[%clk 0:02:47]} 9. Bxe5 {[%clk 0:02:32.7]} 9... a6 {[%clk
0:02:47.4]} 10. Ba4 {[%clk 0:02:18.2]} 10... b5 {[%clk 0:02:45.9]} 11. Bc2
{[%clk 0:02:18.4]} 11... Bxc2 {[%clk 0:02:40.9]} 12. Qxc2 {[%clk 0:02:19.3]}
12... Nxe5 {[%clk 0:02:40.3]} 13. dxe5 {[%clk 0:02:20.2]} 13... Be7 {[%clk
0:02:30.3]} 14. O-O {[%clk 0:02:19]} 14... O-O {[%clk 0:02:30.2]} 15. f4 {[%clk
0:02:15]} 15... f5 {[%clk 0:02:24.3]} 16. exf6 {[%clk 0:02:00.4]} 16... Bxf6
{[%clk 0:02:24.3]} 17. Nf3 {[%clk 0:01:56.1]} 17... Qb6 {[%clk 0:02:16.9]} 18.
e4 {[%clk 0:01:53.9]} 18... Rad8 {[%clk 0:02:07.2]} 19. Rad1 {[%clk 0:01:46.1]}
19... b4 {[%clk 0:02:03.7]} 20. e5 {[%clk 0:01:29.8]} 20... Be7 {[%clk
0:02:03.6]} 21. c4 {[%clk 0:01:29.9]} 21... Rxf4 {[%clk 0:01:58.6]} 22. cxd5
{[%clk 0:01:28.1]} 22... c4+ {[%clk 0:01:55.1]} 23. Kh1 {[%clk 0:01:21.8]} 23...
exd5 {[%clk 0:01:47.8]} 24. Qe2 {[%clk 0:01:14.8]} 24... Re4 {[%clk 0:01:39.6]}
25. Qc2 {[%clk 0:01:12.4]} 25... b3 {[%clk 0:01:33.9]} 26. axb3 {[%clk
0:01:09.7]} 26... Qxb3 {[%clk 0:01:34.8]} 27. Qxb3 {[%clk 0:01:06.1]} 27... cxb3
{[%clk 0:01:35.7]} 28. Rd3 {[%clk 0:01:06.5]} 28... d4 {[%clk 0:00:57.7]} 29.
Rxb3 {[%clk 0:00:52.9]} 29... d3 {[%clk 0:00:56.2]} 30. Rd1 {[%clk 0:00:53.2]}
30... d2 {[%clk 0:00:51.2]} 31. Kg1 {[%clk 0:00:49.5]} 31... Bb4 {[%clk
0:00:48.4]} 32. Kf2 {[%clk 0:00:27.6]} 32... a5 {[%clk 0:00:48.4]} 33. Rc3
{[%clk 0:00:02.4]} 33... Bxc3 {[%clk 0:00:45.8]} 34. bxc3 {[%clk 0:00:03.3]}
34... a4 {[%clk 0:00:46.3]} 35. Nxd2 {[%clk 0:00:03.3]} 35... Rxe5 {[%clk
0:00:44.4]} 36. c4 {[%clk 0:00:03.6]} 36... a3 {[%clk 0:00:43.8]} 0-1

[Event "*** Titled Tuesday Blitz"]
[Site "Chess.com"]
[Date "2020.11.10"]
[Round "8"]
[White "Oleksandr_Bortnyk"]
[Black "Margency"]
[Result "1-0"]
[WhiteElo "2905"]
[BlackElo "2691"]
[TimeControl "180+1"]
[EndTime "11:33:01 PST"]
[Termination "Oleksandr_Bortnyk won by resignation"]

1. e4 {[%clk 0:03:00.9]} 1... c5 {[%clk 0:02:59.1]} 2. c3 {[%clk 0:02:59.2]}
2... d5 {[%clk 0:02:59.1]} 3. exd5 {[%clk 0:02:59.4]} 3... Qxd5 {[%clk 0:03:00]}
4. d4 {[%clk 0:03:00.2]} 4... Nc6 {[%clk 0:02:59.4]} 5. Be3 {[%clk 0:02:58.1]}
5... Nf6 {[%clk 0:02:52.4]} 6. dxc5 {[%clk 0:02:55.5]} 6... Qxd1+ {[%clk
0:02:52.2]} 7. Kxd1 {[%clk 0:02:56.4]} 7... Nd5 {[%clk 0:02:39.7]} 8. b4 {[%clk
0:02:52.9]} 8... Nxe3+ {[%clk 0:02:38.5]} 9. fxe3 {[%clk 0:02:53.1]} 9... Bf5
{[%clk 0:02:36.3]} 10. Nf3 {[%clk 0:02:51.2]} 10... O-O-O+ {[%clk 0:02:35.1]}
11. Nbd2 {[%clk 0:02:51.5]} 11... e5 {[%clk 0:02:31.1]} 12. Bb5 {[%clk
0:02:50.8]} 12... f6 {[%clk 0:02:30.2]} 13. Ke2 {[%clk 0:02:48.7]} 13... Be7
{[%clk 0:02:21.4]} 14. e4 {[%clk 0:02:47.5]} 14... Bg4 {[%clk 0:02:13.3]} 15. h3
{[%clk 0:02:45.8]} 15... Bh5 {[%clk 0:02:12.8]} 16. g4 {[%clk 0:02:46]} 16...
Bf7 {[%clk 0:02:10.3]} 17. Bc4 {[%clk 0:02:45.9]} 17... Be8 {[%clk 0:02:06]} 18.
Be6+ {[%clk 0:02:44.7]} 18... Kc7 {[%clk 0:02:04.8]} 19. Nc4 {[%clk 0:02:44.8]}
19... h5 {[%clk 0:01:52.7]} 20. Ne3 {[%clk 0:02:17.4]} 20... Bf8 {[%clk
0:01:34.1]} 21. g5 {[%clk 0:02:02.1]} 21... h4 {[%clk 0:01:27.8]} 22. Nd5+
{[%clk 0:01:53.4]} 22... Kb8 {[%clk 0:01:27.3]} 23. gxf6 {[%clk 0:01:54.3]}
23... gxf6 {[%clk 0:01:25.3]} 24. Nxf6 {[%clk 0:01:55]} 24... Bh6 {[%clk
0:01:19.7]} 25. Rhg1 {[%clk 0:01:43.9]} 25... Bf4 {[%clk 0:01:10.6]} 26. Rg7
{[%clk 0:01:34.2]} 26... Nxb4 {[%clk 0:00:46.7]} 27. cxb4 {[%clk 0:01:12.4]}
27... Bb5+ {[%clk 0:00:46.5]} 28. Kf2 {[%clk 0:01:13]} 28... Rh6 {[%clk
0:00:45.4]} 29. Bd5 {[%clk 0:01:03.5]} 29... b6 {[%clk 0:00:18.6]} 30. Ng4
{[%clk 0:00:54.5]} 30... Rhh8 {[%clk 0:00:16.3]} 31. cxb6 {[%clk 0:00:52.9]}
31... axb6 {[%clk 0:00:15.5]} 32. a4 {[%clk 0:00:49.2]} 32... Bd3 {[%clk
0:00:14.6]} 33. a5 {[%clk 0:00:49.6]} 33... bxa5 {[%clk 0:00:14.3]} 34. Rxa5
{[%clk 0:00:48.1]} 34... Rxd5 {[%clk 0:00:14.5]} 35. Rxd5 {[%clk 0:00:41.6]}
35... Bxe4 {[%clk 0:00:14.6]} 36. Rb5+ {[%clk 0:00:39]} 36... Ka8 {[%clk
0:00:14.4]} 37. Nfxe5 {[%clk 0:00:38.4]} 37... Rc8 {[%clk 0:00:13.6]} 38. Ra5+
{[%clk 0:00:36.8]} 38... Kb8 {[%clk 0:00:13.8]} 39. Nd7+ {[%clk 0:00:37.7]}
39... Kc7 {[%clk 0:00:13.5]} 40. Nc5+ {[%clk 0:00:38.6]} 40... Kb6 {[%clk
0:00:13.8]} 1-0

[Event "*** Titled Tuesday Blitz"]
[Site "Chess.com"]
[Date "2020.11.10"]
[Round "8"]
[White "Quiet_Desperation"]
[Black "Xeniya2005"]
[Result "1-0"]
[WhiteElo "1776"]
[BlackElo "2373"]
[TimeControl "180+1"]
[EndTime "11:33:01 PST"]
[Termination "Quiet_Desperation won by resignation"]

1. e4 {[%clk 0:02:57.6]} 1... e6 {[%clk 0:02:59.9]} 2. d4 {[%clk 0:02:57.3]}
2... d5 {[%clk 0:02:58.3]} 3. Nc3 {[%clk 0:02:57.6]} 3... Nf6 {[%clk 0:02:56.3]}
4. e5 {[%clk 0:02:54.8]} 4... Nfd7 {[%clk 0:02:55.5]} 5. f4 {[%clk 0:02:54.1]}
5... c5 {[%clk 0:02:55.2]} 6. Nf3 {[%clk 0:02:53.4]} 6... Nc6 {[%clk 0:02:54.9]}
7. Be3 {[%clk 0:02:50.2]} 7... a6 {[%clk 0:02:54.9]} 8. Be2 {[%clk 0:02:48.7]}
8... b5 {[%clk 0:02:54.1]} 9. O-O {[%clk 0:02:42.1]} 9... Qb6 {[%clk 0:02:53.2]}
10. Qd2 {[%clk 0:02:37]} 10... Bb7 {[%clk 0:02:46.7]} 11. Kh1 {[%clk 0:02:34.3]}
11... g6 {[%clk 0:02:44.3]} 12. Nd1 {[%clk 0:02:26.6]} 12... cxd4 {[%clk
0:02:42.4]} 13. Nxd4 {[%clk 0:02:26]} 13... Bc5 {[%clk 0:02:41]} 14. c3 {[%clk
0:02:25.8]} 14... O-O-O {[%clk 0:02:37.9]} 15. Nf2 {[%clk 0:02:15.4]} 15... Kb8
{[%clk 0:02:27.1]} 16. Nd3 {[%clk 0:02:12.4]} 16... Bxd4 {[%clk 0:02:20]} 17.
cxd4 {[%clk 0:02:11.5]} 17... Rc8 {[%clk 0:02:15.1]} 18. b4 {[%clk 0:02:07]}
18... Ne7 {[%clk 0:02:01.9]} 19. Nc5 {[%clk 0:02:04.1]} 19... Nxc5 {[%clk
0:01:52.7]} 20. bxc5 {[%clk 0:01:45.5]} 20... Qc6 {[%clk 0:01:42.4]} 21. a4
{[%clk 0:01:39.3]} 21... b4 {[%clk 0:01:31.6]} 22. Qxb4 {[%clk 0:01:36.1]} 22...
Nf5 {[%clk 0:01:29.6]} 23. Bf2 {[%clk 0:01:30]} 23... Ka7 {[%clk 0:01:22.6]} 24.
Rfb1 {[%clk 0:01:25.9]} 24... Ne7 {[%clk 0:01:08.8]} 25. Bb5 {[%clk 0:01:22.7]}
25... Qc7 {[%clk 0:01:03.5]} 26. Qb2 {[%clk 0:01:03.8]} 26... Rb8 {[%clk
0:01:00.4]} 27. Be1 {[%clk 0:01:01.3]} 27... Bc6 {[%clk 0:00:56.8]} 28. Bc3
{[%clk 0:00:55.9]} 28... Rb7 {[%clk 0:00:50.7]} 29. Qd2 {[%clk 0:00:52.5]} 29...
Nc8 {[%clk 0:00:44.3]} 30. Ba5 {[%clk 0:00:51.7]} 30... Qd7 {[%clk 0:00:43.4]}
31. Qd3 {[%clk 0:00:44.9]} 31... Ne7 {[%clk 0:00:34.1]} 32. Bxa6 {[%clk
0:00:41.4]} 32... Rxb1+ {[%clk 0:00:31.8]} 33. Rxb1 {[%clk 0:00:40.2]} 33... Rb8
{[%clk 0:00:30.7]} 34. Bb6+ {[%clk 0:00:39.5]} 34... Ka8 {[%clk 0:00:28.1]} 35.
Bb5 {[%clk 0:00:38.1]} 35... Qb7 {[%clk 0:00:24]} 36. Qc3 {[%clk 0:00:35]} 36...
Nc8 {[%clk 0:00:18.8]} 37. Qa5+ {[%clk 0:00:33.7]} 37... Na7 {[%clk 0:00:17.9]}
38. Bxc6 {[%clk 0:00:32.9]} 1-0

[Event "*** Titled Tuesday Blitz"]
[Site "Chess.com"]
[Date "2020.11.10"]
[Round "8"]
[White "ShimanovAlex"]
[Black "bazar-wokzal"]
[Result "1-0"]
[WhiteElo "2803"]
[BlackElo "2501"]
[TimeControl "180+1"]
[EndTime "11:33:02 PST"]
[Termination "ShimanovAlex won by resignation"]

1. e4 {[%clk 0:03:00.9]} 1... Nc6 {[%clk 0:02:59.6]} 2. Bb5 {[%clk 0:02:50.4]}
2... Nf6 {[%clk 0:02:58.4]} 3. d3 {[%clk 0:02:50.2]} 3... e5 {[%clk 0:02:57.3]}
4. Nf3 {[%clk 0:02:49.4]} 4... Bc5 {[%clk 0:02:55.7]} 5. c3 {[%clk 0:02:49.2]}
5... O-O {[%clk 0:02:42.6]} 6. Bg5 {[%clk 0:02:48.6]} 6... h6 {[%clk 0:02:41.4]}
7. Bh4 {[%clk 0:02:48.5]} 7... d6 {[%clk 0:02:38.1]} 8. Nbd2 {[%clk 0:02:47.3]}
8... Qe7 {[%clk 0:02:23.9]} 9. Qe2 {[%clk 0:02:41.4]} 9... Nd8 {[%clk
0:02:18.1]} 10. d4 {[%clk 0:02:38.4]} 10... Bb6 {[%clk 0:02:17.5]} 11. dxe5
{[%clk 0:02:35.3]} 11... dxe5 {[%clk 0:02:17.3]} 12. Bg3 {[%clk 0:02:35.3]}
12... c6 {[%clk 0:02:10.5]} 13. Bc4 {[%clk 0:02:34.9]} 13... Bc7 {[%clk
0:02:05.1]} 14. Nh4 {[%clk 0:02:29.4]} 14... Ne6 {[%clk 0:01:42.4]} 15. Nf5
{[%clk 0:02:28.4]} 15... Qc5 {[%clk 0:01:42.3]} 16. b4 {[%clk 0:02:19.3]} 16...
Qb6 {[%clk 0:01:39.3]} 17. Ne7+ {[%clk 0:02:04.7]} 17... Kh7 {[%clk 0:01:34.4]}
18. Nxc8 {[%clk 0:02:02.7]} 18... Raxc8 {[%clk 0:01:34.3]} 19. Bxe6 {[%clk
0:02:03.1]} 19... fxe6 {[%clk 0:01:34.3]} 20. Nc4 {[%clk 0:01:59.7]} 20... Qa6
{[%clk 0:01:29.2]} 21. a4 {[%clk 0:01:59.6]} 21... Nd7 {[%clk 0:01:19.3]} 22.
Rd1 {[%clk 0:01:50.7]} 22... Rf7 {[%clk 0:01:14.7]} 23. a5 {[%clk 0:01:45.4]}
23... c5 {[%clk 0:01:05.2]} 24. Ne3 {[%clk 0:01:27.8]} 24... cxb4 {[%clk
0:00:55.4]} 25. cxb4 {[%clk 0:01:26.7]} 25... Qxe2+ {[%clk 0:00:44.2]} 26. Kxe2
{[%clk 0:01:27.6]} 26... Nf6 {[%clk 0:00:44.5]} 27. f3 {[%clk 0:01:26.5]} 27...
Nh5 {[%clk 0:00:44.7]} 28. Rc1 {[%clk 0:01:24.9]} 28... Nf4+ {[%clk 0:00:40.1]}
29. Bxf4 {[%clk 0:01:24.7]} 29... exf4 {[%clk 0:00:40.5]} 30. Ng4 {[%clk
0:01:23.1]} 30... Rd8 {[%clk 0:00:27.5]} 31. Rhd1 {[%clk 0:01:22.4]} 31... Rfd7
{[%clk 0:00:23.2]} 32. Rxd7 {[%clk 0:01:21.5]} 32... Rxd7 {[%clk 0:00:23.7]} 33.
Nf2 {[%clk 0:01:22.2]} 33... Kg6 {[%clk 0:00:22]} 34. Nd3 {[%clk 0:01:22]} 34...
Bd6 {[%clk 0:00:19.4]} 35. e5 {[%clk 0:01:20.1]} 35... Bb8 {[%clk 0:00:19.1]}
36. Rc4 {[%clk 0:01:14.8]} 36... Kh7 {[%clk 0:00:13.7]} 37. Rxf4 {[%clk
0:01:14]} 37... g5 {[%clk 0:00:13.5]} 38. Rc4 {[%clk 0:01:12.6]} 38... Kg6
{[%clk 0:00:13.2]} 39. Ke3 {[%clk 0:01:12]} 39... h5 {[%clk 0:00:12.2]} 40. Rc8
{[%clk 0:01:07.6]} 40... Bc7 {[%clk 0:00:12.1]} 41. Rf8 {[%clk 0:01:07.5]} 41...
Bd8 {[%clk 0:00:08.4]} 42. Nc5 {[%clk 0:01:04.8]} 42... Rd5 {[%clk 0:00:08.6]}
43. Ke4 {[%clk 0:01:03.7]} 43... Bc7 {[%clk 0:00:07.6]} 44. Rf6+ {[%clk
0:01:03.5]} 44... Kg7 {[%clk 0:00:07.4]} 45. Nxe6+ {[%clk 0:01:02.9]} 1-0

[Event "*** Titled Tuesday Blitz"]
[Site "Chess.com"]
[Date "2020.11.10"]
[Round "8"]
[White "GMKrikor"]
[Black "TokChess"]
[Result "1-0"]
[WhiteElo "2778"]
[BlackElo "2449"]
[TimeControl "180+1"]
[EndTime "11:33:03 PST"]
[Termination "GMKrikor won on time"]

1. e4 {[%clk 0:03:00.9]} 1... c5 {[%clk 0:02:59.7]} 2. Nf3 {[%clk 0:03:00.4]}
2... e6 {[%clk 0:03:00.3]} 3. d4 {[%clk 0:03:00.3]} 3... cxd4 {[%clk 0:03:01.2]}
4. Nxd4 {[%clk 0:03:01.1]} 4... a6 {[%clk 0:03:02.1]} 5. Bd3 {[%clk 0:03:00.7]}
5... Nf6 {[%clk 0:03:00.5]} 6. O-O {[%clk 0:03:00.3]} 6... Qc7 {[%clk
0:03:00.7]} 7. Qe2 {[%clk 0:02:59]} 7... d6 {[%clk 0:03:00.9]} 8. c4 {[%clk
0:02:57.7]} 8... Nbd7 {[%clk 0:02:58.8]} 9. Nc3 {[%clk 0:02:57.3]} 9... b6
{[%clk 0:02:58.7]} 10. Bd2 {[%clk 0:02:57.6]} 10... Bb7 {[%clk 0:02:59.2]} 11.
Kh1 {[%clk 0:02:57.5]} 11... Be7 {[%clk 0:02:59.6]} 12. f4 {[%clk 0:02:57.1]}
12... Rd8 {[%clk 0:02:58.2]} 13. Rae1 {[%clk 0:02:55.8]} 13... O-O {[%clk
0:02:58.2]} 14. f5 {[%clk 0:02:47.9]} 14... e5 {[%clk 0:02:39.1]} 15. Nb3 {[%clk
0:02:47.5]} 15... Nc5 {[%clk 0:02:38.2]} 16. Nxc5 {[%clk 0:02:19.6]} 16... dxc5
{[%clk 0:02:36.1]} 17. Nd5 {[%clk 0:02:19.5]} 17... Bxd5 {[%clk 0:02:26.1]} 18.
exd5 {[%clk 0:02:16.3]} 18... Bd6 {[%clk 0:02:15.6]} 19. g4 {[%clk 0:02:03.3]}
19... e4 {[%clk 0:02:04.9]} 20. Bc2 {[%clk 0:02:02.2]} 20... e3 {[%clk
0:02:05.4]} 21. Bxe3 {[%clk 0:01:50.6]} 21... h6 {[%clk 0:01:38.5]} 22. Qg2
{[%clk 0:01:43.7]} 22... Rfe8 {[%clk 0:01:22.5]} 23. g5 {[%clk 0:01:16.8]} 23...
hxg5 {[%clk 0:01:03.2]} 24. Bxg5 {[%clk 0:01:17.7]} 24... Be5 {[%clk 0:00:38.2]}
25. Rg1 {[%clk 0:01:12.9]} 25... Nh5 {[%clk 0:00:10.9]} 26. Bxd8 {[%clk
0:00:28.4]} 26... Rxd8 {[%clk 0:00:11.8]} 27. Qg5 {[%clk 0:00:21.2]} 1-0

[Event "*** Titled Tuesday Blitz"]
[Site "Chess.com"]
[Date "2020.11.10"]
[Round "8"]
[White "Witik"]
[Black "IrishMonkey"]
[Result "1-0"]
[WhiteElo "2660"]
[BlackElo "2467"]
[TimeControl "180+1"]
[EndTime "11:33:04 PST"]
[Termination "Witik won by resignation"]

1. b4 {[%clk 0:02:58.8]} 1... e5 {[%clk 0:02:57.5]} 2. Bb2 {[%clk 0:02:58.3]}
2... Bxb4 {[%clk 0:02:52]} 3. Bxe5 {[%clk 0:02:57.8]} 3... Nf6 {[%clk 0:02:44]}
4. Nf3 {[%clk 0:02:57]} 4... O-O {[%clk 0:02:39]} 5. e3 {[%clk 0:02:56.6]} 5...
d5 {[%clk 0:02:36.5]} 6. Be2 {[%clk 0:02:53.2]} 6... c5 {[%clk 0:02:33.9]} 7.
O-O {[%clk 0:02:53.1]} 7... Nc6 {[%clk 0:02:32.6]} 8. Bb2 {[%clk 0:02:52.4]}
8... Re8 {[%clk 0:02:32.1]} 9. d4 {[%clk 0:02:19.2]} 9... c4 {[%clk 0:02:29.3]}
10. Ne5 {[%clk 0:02:12.4]} 10... Bd6 {[%clk 0:02:23.3]} 11. f4 {[%clk
0:02:07.6]} 11... Qe7 {[%clk 0:02:19.2]} 12. Nc3 {[%clk 0:02:06.8]} 12... Bf5
{[%clk 0:02:15.7]} 13. g4 {[%clk 0:02:01.5]} 13... Ba3 {[%clk 0:02:12]} 14. Bxa3
{[%clk 0:01:34.8]} 14... Qxa3 {[%clk 0:02:12.9]} 15. Qe1 {[%clk 0:01:16.6]}
15... Bxc2 {[%clk 0:02:09.4]} 16. g5 {[%clk 0:01:16.3]} 16... Nxe5 {[%clk
0:02:06.4]} 17. gxf6 {[%clk 0:01:03.6]} 17... Nd7 {[%clk 0:02:06.3]} 18. fxg7
{[%clk 0:00:54]} 18... Be4 {[%clk 0:02:06.7]} 19. Bf3 {[%clk 0:00:43.1]} 19...
Kxg7 {[%clk 0:01:49]} 20. Bxe4 {[%clk 0:00:38.5]} 20... dxe4 {[%clk 0:01:44.6]}
21. Kh1 {[%clk 0:00:37.1]} 21... Kh8 {[%clk 0:01:42]} 22. Nb5 {[%clk 0:00:33.1]}
22... Qb2 {[%clk 0:01:38.4]} 23. Rb1 {[%clk 0:00:29.5]} 23... Qxa2 {[%clk
0:01:35.9]} 24. Nd6 {[%clk 0:00:18.4]} 24... Re7 {[%clk 0:01:31.2]} 25. Qh4
{[%clk 0:00:17.1]} 25... f6 {[%clk 0:01:20.4]} 26. Nf5 {[%clk 0:00:13.9]} 26...
Rf7 {[%clk 0:01:17.8]} 27. Rg1 {[%clk 0:00:13.8]} 27... c3 {[%clk 0:01:15.5]}
28. Rbc1 {[%clk 0:00:09.5]} 28... Qe6 {[%clk 0:01:11.3]} 29. Nh6 {[%clk
0:00:07.9]} 29... Re7 {[%clk 0:01:08.6]} 30. Rxc3 {[%clk 0:00:07.9]} 30... a5
{[%clk 0:01:06.1]} 31. Rc7 {[%clk 0:00:07.4]} 31... b5 {[%clk 0:01:02.8]} 32. f5
{[%clk 0:00:03.9]} 32... Qd5 {[%clk 0:01:00.4]} 33. Rc2 {[%clk 0:00:03.7]} 33...
b4 {[%clk 0:00:57]} 34. Rcg2 {[%clk 0:00:04.2]} 34... Qf7 {[%clk 0:00:53.4]} 35.
Nxf7+ {[%clk 0:00:04]} 35... Rxf7 {[%clk 0:00:52.6]} 36. Qh6 {[%clk 0:00:04.1]}
36... Nc5 {[%clk 0:00:45.8]} 37. Rg7 {[%clk 0:00:03.8]} 1-0

[Event "*** Titled Tuesday Blitz"]
[Site "Chess.com"]
[Date "2020.11.10"]
[Round "8"]
[White "MokshanovAlexey"]
[Black "anpospan"]
[Result "1-0"]
[WhiteElo "2619"]
[BlackElo "2435"]
[TimeControl "180+1"]
[EndTime "11:33:05 PST"]
[Termination "MokshanovAlexey won on time"]

1. e4 {[%clk 0:03:00.9]} 1... Nc6 {[%clk 0:02:59.3]} 2. d4 {[%clk 0:03:00.6]}
2... e5 {[%clk 0:02:58.4]} 3. Nf3 {[%clk 0:03:00.5]} 3... exd4 {[%clk
0:02:56.9]} 4. Nxd4 {[%clk 0:03:00.7]} 4... Nf6 {[%clk 0:02:56.7]} 5. Nxc6
{[%clk 0:03:00.7]} 5... bxc6 {[%clk 0:02:54.6]} 6. e5 {[%clk 0:03:00.9]} 6...
Nd5 {[%clk 0:02:41.7]} 7. c4 {[%clk 0:03:00.6]} 7... Bb4+ {[%clk 0:02:38.6]} 8.
Bd2 {[%clk 0:02:57.3]} 8... Bxd2+ {[%clk 0:02:37.3]} 9. Qxd2 {[%clk 0:02:57.8]}
9... Qe7 {[%clk 0:02:36.5]} 10. cxd5 {[%clk 0:02:55.7]} 10... Qxe5+ {[%clk
0:02:36.1]} 11. Be2 {[%clk 0:02:43.7]} 11... cxd5 {[%clk 0:02:34]} 12. O-O
{[%clk 0:02:43.9]} 12... O-O {[%clk 0:02:33.3]} 13. Bf3 {[%clk 0:02:41.6]} 13...
c6 {[%clk 0:02:33]} 14. Re1 {[%clk 0:02:41.9]} 14... Qf6 {[%clk 0:02:32.9]} 15.
Nc3 {[%clk 0:02:41.5]} 15... Ba6 {[%clk 0:02:32.4]} 16. b3 {[%clk 0:02:38.8]}
16... g6 {[%clk 0:02:27.6]} 17. Rac1 {[%clk 0:02:38.4]} 17... Rfe8 {[%clk
0:02:20.5]} 18. Na4 {[%clk 0:02:38.3]} 18... Rxe1+ {[%clk 0:02:00.2]} 19. Qxe1
{[%clk 0:02:38.1]} 19... Bd3 {[%clk 0:01:39.6]} 20. Qc3 {[%clk 0:02:23.4]} 20...
Qxc3 {[%clk 0:01:36.7]} 21. Rxc3 {[%clk 0:02:24.3]} 21... Re8 {[%clk 0:01:30.7]}
22. g4 {[%clk 0:02:19.9]} 22... Re1+ {[%clk 0:01:28]} 23. Kg2 {[%clk 0:02:19.7]}
23... Bf1+ {[%clk 0:01:23.7]} 24. Kg3 {[%clk 0:02:19.7]} 24... d4 {[%clk
0:01:11.8]} 25. Rc2 {[%clk 0:02:11.3]} 25... Bb5 {[%clk 0:00:44.8]} 26. Nc5
{[%clk 0:01:52.9]} 26... g5 {[%clk 0:00:29]} 27. h4 {[%clk 0:01:42]} 27... d6
{[%clk 0:00:16.9]} 28. Nb7 {[%clk 0:01:38.1]} 28... d5 {[%clk 0:00:10.8]} 29.
hxg5 {[%clk 0:01:20.2]} 29... d3 {[%clk 0:00:09.5]} 30. Rd2 {[%clk 0:01:19.7]}
30... Rc1 {[%clk 0:00:09.6]} 31. a4 {[%clk 0:00:53.3]} 31... Rc2 {[%clk
0:00:10.5]} 32. Rd1 {[%clk 0:00:53]} 32... Ba6 {[%clk 0:00:09.9]} 33. b4 {[%clk
0:00:53.3]} 33... Bc4 {[%clk 0:00:08.5]} 34. Nc5 {[%clk 0:00:52]} 34... d2
{[%clk 0:00:08]} 35. Kf4 {[%clk 0:00:44]} 35... d4 {[%clk 0:00:04.3]} 36. Ne4
{[%clk 0:00:38.8]} 1-0